fUSD/lending_fUSD_20250708
["ID","MTS","AMOUNT","RATE_DAILY","PERIOD"]
[370321513,1751957442607,-747.86,0.00028451,3]
[370321514,1751957442616,-460.0,0.00028451,3]
[370321515,1751957442626,-460.0,0.00028451,3]
[370321516,1751957442635,-460.0,0.00028451,3]
[370321517,1751957442644,-460.0,0.00028451,3]
[370321518,1751957442654,-460.0,0.00028451,3]
[370321519,1751957442664,-460.0,0.00028451,3]
[370321520,1751957442673,-460.0,0.00028451,3]
[370321521,1751957442683,-460.0,0.00028451,3]
[370321522,1751957442693,-460.0,0.00028451,3]
[370321523,1751957442703,-460.0,0.00028451,3]
[370321524,1751957442712,-460.0,0.00028451,3]
[370321525,1751957442722,-460.0,0.00028451,3]
[370321526,1751957442732,-460.0,0.00028451,3]
[370321527,1751957442742,-460.0,0.00028451,3]
[370321528,1751957442751,-460.0,0.00028451,3]
[370321529,1751957442761,-490.0,0.00028451,3]
[370321530,1751957442771,-460.0,0.00028451,3]
[370321531,1751957442780,-460.0,0.00028451,3]
[370321532,1751957442789,-460.0,0.00028451,3]
[370321533,1751957442799,-460.0,0.00028451,3]
[370321534,1751957442809,-756.63,0.00028451,3]
[370321535,1751957442818,-460.0,0.00028451,3]
[370321536,1751957442827,-460.0,0.00028451,3]
[370321537,1751957442836,-460.0,0.00028451,3]
[370321538,1751957442845,-460.0,0.00028451,3]
[370321539,1751957442854,-460.0,0.00028451,3]
[370321540,1751957442863,-460.0,0.00028451,3]
[370321541,1751957442873,-460.0,0.00028451,3]
[370321542,1751957442882,-460.0,0.00028451,3]
[370321543,1751957442893,-460.0,0.00028451,3]
[370321544,1751957442903,-460.0,0.00028451,3]
[370321545,1751957442912,-460.0,0.00028451,3]
[370321546,1751957442923,-2041.17619146,0.00028451,2]
[370321547,1751957442933,-544.83,0.00028451,3]
[370321548,1751957442942,-460.0,0.00028451,3]
[370321549,1751957442952,-460.0,0.00028451,3]
[370321550,1751957442962,-460.0,0.00028451,3]
[370321551,1751957442972,-460.0,0.00028451,3]
[370321552,1751957442981,-460.0,0.00028451,3]
[370321553,1751957442992,-460.0,0.00028451,3]
[370321554,1751957443001,-460.0,0.00028451,3]
[370321555,1751957443011,-460.0,0.00028451,3]
[370321556,1751957443020,-460.0,0.00028451,3]
[370321557,1751957443030,-460.0,0.00028451,3]
[370321558,1751957443049,-460.0,0.00028451,3]
[370321559,1751957443067,-460.0,0.00028451,3]
[370321560,1751957443087,-521.36,0.00028451,3]
[370321561,1751957443106,-460.0,0.00028451,3]
[370321562,1751957443121,-460.0,0.00028451,3]
[370321563,1751957443141,-460.0,0.00028451,3]
[370321564,1751957443160,-460.0,0.00028451,3]
[370321565,1751957443180,-460.0,0.00028451,3]
[370321566,1751957443198,-460.0,0.00028451,3]
[370321567,1751957443216,-460.0,0.00028451,3]
[370321568,1751957443234,-460.0,0.00028451,3]
[370321569,1751957443249,-460.0,0.00028451,3]
[370321570,1751957443268,-460.0,0.00028451,3]
[370321571,1751957443281,-460.0,0.00028451,3]
[370321572,1751957443300,-460.0,0.00028451,3]
[370321575,1751957443312,-460.0,0.00028451,3]
[370321577,1751957443328,-460.0,0.00028451,3]
[370321580,1751957443343,-730.55,0.00028451,3]
[370321584,1751957443366,-466.47,0.00028451,3]
[370321585,1751957443381,-460.96602248,0.00028451,3]
[370321586,1751957443399,-460.0,0.00028451,3]
[370321587,1751957443415,-460.0,0.00028451,3]
[370321588,1751957443429,-495.77198628,0.00028451,3]
[370321589,1751957443445,-500.0,0.00028451,3]
[370321590,1751957443461,-460.0,0.00028451,3]
[370321591,1751957443477,-460.0,0.00028451,3]
[370321592,1751957443492,-460.0,0.00028451,3]
[370321593,1751957443508,-460.0,0.00028451,3]
[370321594,1751957443524,-460.0,0.00028451,3]
[370321595,1751957443539,-460.0,0.00028451,3]
[370321596,1751957443554,-460.0,0.00028451,3]
[370321597,1751957443570,-460.0,0.00028451,3]
[370321598,1751957443586,-460.0,0.00028451,3]
[370321599,1751957443602,-460.0,0.00028451,3]
[370321600,1751957443616,-460.0,0.00028451,3]
[370321601,1751957443632,-460.0,0.00028451,3]
[370321602,1751957443648,-460.0,0.00028451,3]
[370321603,1751957443666,-510.64,0.00028451,3]
[370321604,1751957443682,-460.0,0.00028451,3]
[370321605,1751957443698,-158.08137762,0.00028451,2]
[370321606,1751957443714,-460.0,0.00028451,3]
[370321607,1751957443730,-460.0,0.00028451,3]
[370321608,1751957443745,-460.0,0.00028451,3]
[370321609,1751957443760,-460.0,0.00028451,3]
[370321610,1751957443776,-460.0,0.00028451,3]
[370321611,1751957443792,-460.0,0.00028451,3]
[370321612,1751957443807,-460.0,0.00028451,3]
[370321613,1751957443822,-460.0,0.00028451,3]
[370321614,1751957443838,-460.0,0.00028451,3]
[370321615,1751957443852,-460.0,0.00028451,3]
[370321616,1751957443867,-492.86688377,0.00028451,3]
[370321617,1751957443883,-460.0,0.00028451,3]
[370321618,1751957443899,-460.0,0.00028451,3]
[370321619,1751957443914,-460.0,0.00028451,3]
[370321620,1751957443930,-460.0,0.00028451,3]
[370321621,1751957443946,-460.0,0.00028451,3]
[370321622,1751957443961,-460.0,0.00028451,3]
[370321623,1751957443977,-460.0,0.00028451,3]
[370321624,1751957443992,-460.0,0.00028451,3]
[370321625,1751957444007,-460.0,0.00028451,3]
[370321626,1751957444024,-460.0,0.00028451,3]
[370321627,1751957444039,-515.04,0.00028451,3]
[370321628,1751957444055,-460.0,0.00028451,3]
[370321629,1751957444070,-460.0,0.00028451,3]
[370321630,1751957444085,-460.0,0.00028451,3]
[370321631,1751957444100,-460.0,0.00028451,3]
[370321632,1751957444115,-460.0,0.00028451,3]
[370321633,1751957444131,-460.0,0.00028451,3]
[370321634,1751957444145,-460.0,0.00028451,3]
[370321635,1751957444161,-460.0,0.00028451,3]
[370321636,1751957444176,-460.0,0.00028451,3]
[370321637,1751957444191,-460.0,0.00028451,3]
[370321638,1751957444205,-531.38,0.00028451,3]
[370321639,1751957444221,-460.0,0.00028451,3]
[370321640,1751957444236,-460.0,0.00028451,3]
[370321641,1751957444252,-460.0,0.00028451,3]
[370321642,1751957444269,-460.0,0.00028451,3]
[370321643,1751957444287,-460.0,0.00028451,3]
[370321644,1751957444303,-460.0,0.00028451,3]
[370321645,1751957444319,-460.0,0.00028451,3]
[370321646,1751957444336,-460.0,0.00028451,3]
[370321647,1751957444351,-460.0,0.00028451,3]
[370321648,1751957444366,-160.45316663,0.00028451,2]
[370321649,1751957444389,-460.0,0.00028451,3]
[370321650,1751957444407,-460.0,0.00028451,3]
[370321651,1751957444423,-460.0,0.00028451,3]
[370321652,1751957444439,-460.0,0.00028451,3]
[370321653,1751957444456,-460.0,0.00028451,3]
[370321654,1751957444474,-460.0,0.00028451,3]
[370321655,1751957444490,-460.0,0.00028451,3]
[370321656,1751957444506,-460.0,0.00028451,3]
[370321657,1751957444522,-460.0,0.00028451,3]
[370321658,1751957444537,-460.0,0.00028451,3]
[370321659,1751957444554,-460.0,0.00028451,3]
[370321660,1751957444570,-460.0,0.00028451,3]
[370321661,1751957444585,-460.0,0.00028451,3]
[370321662,1751957444601,-460.0,0.00028451,3]
[370321663,1751957444617,-460.0,0.00028451,3]
[370321664,1751957444632,-460.0,0.00028451,3]
[370321665,1751957444647,-460.0,0.00028451,3]
[370321666,1751957444663,-460.0,0.00028451,3]
[370321667,1751957444679,-460.0,0.00028451,3]
[370321668,1751957444695,-460.0,0.00028451,3]
[370321669,1751957444711,-460.0,0.00028451,3]
[370321670,1751957444727,-460.0,0.00028451,3]
[370321671,1751957444743,-1690036.34719618,0.00028452,2]
[370321672,1751957444800,-14456.89119944,0.00028452,2]
[370321673,1751957444969,-1309338.62156048,0.00028452,2]
[370321674,1751957444978,-108982.76152122,0.00028452,2]
[370321675,1751957444988,-188741.8046,0.00028452,2]
[370321676,1751957444998,-1000.0,0.00028457,2]
[370321677,1751957445007,-500.0,0.00028459,2]
[370321678,1751957445436,-241.92100648,0.00028459,2]
[370321679,1751957445475,-189.2119016,0.00028459,2]
[370321680,1751957445507,-150.60210647,0.00028459,2]
[370321681,1751957445518,-500.0,0.00028459,2]
[370321682,1751957445528,-500.0,0.00028466,2]
[370321683,1751957445537,-2041.17619146,0.00028467,2]
[370321684,1751957445546,-36268.3596,0.00028467,2]
[370321685,1751957445556,-540.40060017,0.00028471,2]
[370321686,1751957445566,-2146.78374793,0.00028473,2]
[370321687,1751957445576,-505.0,0.00028474,7]
[370321688,1751957445587,-2041.17619146,0.00028482,2]
[370321689,1751957445597,-157.57102025,0.00028492,2]
[370321690,1751957445607,-1000.0,0.00028493,14]
[370321691,1751957445616,-1000.0,0.00028493,14]
[370321692,1751957445625,-517.19946122,0.00028493,14]
[370321693,1751957445635,-2146.78374793,0.00028498,2]
[370321694,1751957445644,-2041.17619146,0.00028498,2]
[370321695,1751957445654,-5000.0,0.00028499,3]
[370321696,1751957445664,-5000.0,0.00028499,2]
[370321697,1751957445674,-1600.0,0.000285,10]
[370321698,1751957445683,-258.53247831,0.000285,2]
[370321699,1751957445693,-153.25,0.000285,2]
[370321700,1751957445702,-153.25,0.000285,2]
[370321701,1751957445711,-153.25,0.000285,2]
[370321702,1751957445721,-153.25,0.000285,2]
[370321703,1751957445730,-153.25,0.000285,2]
[370321704,1751957445739,-153.25,0.000285,2]
[370321705,1751957445748,-153.25,0.000285,2]
[370321706,1751957445757,-787.78310686,0.000285,2]
[370321707,1751957445766,-787.78310686,0.000285,2]
[370321708,1751957445775,-50453.1796449,0.00028511,2]
[370321709,1751957445784,-153.25,0.00028511,2]
[370321710,1751957445793,-164872.0,0.00028521,2]
[370321711,1751957445802,-153.25,0.00028531,2]
[370321712,1751957445811,-37839.8847337,0.0002854,2]
[370321713,1751957445820,-302719.077869,0.00028541,2]
[370321714,1751957445828,-5000.0,0.00028549,2]
[370321715,1751957445838,-719.85,0.00028549,3]
[370321716,1751957445848,-500.0,0.00028549,3]
[370321717,1751957445858,-300.0,0.0002855,10]
[370321718,1751957445868,-5000.0,0.0002855,2]
[370321719,1751957445876,-460.0,0.0002855,3]
[370321720,1751957445886,-460.0,0.0002855,3]
[370321721,1751957445895,-460.0,0.0002855,3]
[370321722,1751957445904,-460.0,0.0002855,3]
[370321723,1751957445914,-460.0,0.0002855,3]
[370321724,1751957445923,-460.0,0.0002855,3]
[370321725,1751957445933,-460.0,0.0002855,3]
[370321726,1751957445942,-460.0,0.0002855,3]
[370321727,1751957445951,-462.18,0.0002855,3]
[370321728,1751957445961,-516.97,0.0002855,3]
[370321729,1751957445971,-460.0,0.0002855,3]
[370321730,1751957445980,-460.0,0.0002855,3]
[370321731,1751957445990,-460.0,0.0002855,3]
[370321732,1751957445999,-460.0,0.0002855,3]
[370321733,1751957446009,-460.0,0.0002855,3]
[370321734,1751957446018,-460.0,0.0002855,3]
[370321735,1751957446027,-460.0,0.0002855,3]
[370321736,1751957446037,-500.0,0.0002855,3]
[370321737,1751957446046,-460.0,0.0002855,3]
[370321738,1751957446055,-1000.0,0.0002855,3]
[370321739,1751957446064,-693.65,0.0002855,3]
[370321740,1751957446074,-3598.25,0.0002855,3]
[370321741,1751957446083,-1688.97,0.0002855,3]
[370321742,1751957446092,-1983.1,0.0002855,3]
[370321743,1751957446102,-10035.94,0.0002855,3]
[370321744,1751957446111,-753.71,0.0002855,3]
[370321745,1751957446121,-460.0,0.0002855,3]
[370321746,1751957446130,-174.428669,0.0002855,3]
[370321747,1751957446139,-1227.32,0.0002855,3]
[370321749,1751957446149,-729.08,0.0002855,3]
[370321751,1751957446159,-166.886647,0.0002855,3]
[370321753,1751957446168,-1549.64,0.0002855,3]
[370321755,1751957446177,-245.886026,0.0002855,3]
[370321757,1751957446187,-161.619747,0.0002855,3]
[370321759,1751957446196,-159.475296,0.0002855,3]
[370321761,1751957446205,-225.801966,0.0002855,3]
[370321763,1751957446214,-158.594441,0.0002855,3]
[370321765,1751957446223,-460.0,0.0002855,3]
[370321767,1751957446233,-150.810698,0.0002855,3]
[370321769,1751957446242,-160.543998,0.0002855,3]
[370321771,1751957446251,-775.68,0.0002855,3]
[370321773,1751957446261,-896.98,0.0002855,3]
[370321775,1751957446270,-168.031333,0.0002855,3]
[370321777,1751957446279,-4329.86,0.0002855,3]
[370321779,1751957446288,-757.02,0.0002855,3]
[370321781,1751957446297,-1211.06,0.0002855,3]
[370321783,1751957446307,-872.4,0.0002855,3]
[370321785,1751957446316,-800.25,0.0002855,3]
[370321787,1751957446326,-460.0,0.0002855,3]
[370321789,1751957446335,-851.43,0.0002855,3]
[370321791,1751957446345,-492.67,0.0002855,3]
[370321793,1751957446354,-460.0,0.0002855,3]
[370321795,1751957446364,-3905.74,0.0002855,3]
[370321797,1751957446373,-621.22,0.0002855,3]
[370321798,1751957446383,-460.0,0.0002855,3]
[370321800,1751957446398,-1172.0,0.0002855,3]
[370321802,1751957446407,-1589.04,0.0002855,3]
[370321804,1751957446418,-3904.37,0.0002855,3]
[370321806,1751957446428,-707.41,0.0002855,3]
[370321808,1751957446437,-859.22,0.0002855,3]
[370321810,1751957446446,-708.24,0.0002855,3]
[370321812,1751957446456,-460.0,0.0002855,3]
[370321813,1751957446465,-460.0,0.0002855,3]
[370321814,1751957446475,-1423.05,0.0002855,3]
[370321815,1751957446484,-5000.0,0.00028551,3]
[370321816,1751957446494,-5000.0,0.00028551,2]
[370321817,1751957446503,-460.0,0.00028551,3]
[370321819,1751957446513,-460.0,0.00028551,3]
[370321821,1751957446525,-460.0,0.00028551,3]
[370321823,1751957446535,-460.0,0.00028551,3]
[370321825,1751957446545,-460.0,0.00028551,3]
[370321827,1751957446554,-460.0,0.00028551,3]
[370321829,1751957446563,-460.0,0.00028551,3]
[370321831,1751957446574,-460.0,0.00028551,3]
[370321833,1751957446583,-460.0,0.00028551,3]
[370321835,1751957446593,-34518.47,0.00028551,2]
[370321837,1751957446603,-460.0,0.00028552,3]
[370321839,1751957446612,-460.0,0.00028552,3]
[370321841,1751957446621,-460.0,0.00028552,3]
[370321843,1751957446631,-460.0,0.00028552,3]
[370321845,1751957446640,-460.0,0.00028552,3]
[370321847,1751957446650,-460.0,0.00028552,3]
[370321849,1751957446659,-460.0,0.00028552,3]
[370321851,1751957446669,-460.0,0.00028552,3]
[370321853,1751957446679,-460.0,0.00028552,3]
[370321855,1751957446688,-772.63,0.00028552,3]
[370321857,1751957446698,-769.85,0.00028552,3]
[370321859,1751957446707,-880.95,0.00028552,3]
[370321861,1751957446717,-1285.37,0.00028552,3]
[370321862,1751957446727,-3242.51,0.00028552,3]
[370321864,1751957446737,-1000.0,0.00028552,3]
[370321866,1751957446746,-460.0,0.00028552,3]
[370321868,1751957446755,-721.15,0.00028552,3]
[370321870,1751957446765,-460.0,0.00028552,3]
[370321872,1751957446775,-3758.07,0.00028552,3]
[370321874,1751957446784,-1318.2,0.00028552,3]
[370321876,1751957446793,-5399.73,0.00028552,3]
[370321878,1751957446803,-687.16,0.00028552,3]
[370321880,1751957446813,-749.57,0.00028552,3]
[370321882,1751957446822,-1102.11,0.00028552,3]
[370321884,1751957446831,-702.02,0.00028552,3]
[370321886,1751957446841,-669.32,0.00028552,3]
[370321888,1751957446850,-2450.27,0.00028552,3]
[370321890,1751957446860,-2094.14,0.00028552,3]
[370321892,1751957446869,-38407.32,0.00028552,3]
[370321894,1751957446879,-1163.23,0.00028552,3]
[370321896,1751957446888,-3605.16,0.00028552,3]
[370321898,1751957446898,-2464.42,0.00028552,3]
[370321900,1751957446907,-626.3,0.00028552,3]
[370321902,1751957446918,-6057.79,0.00028552,3]
[370321904,1751957446928,-532.48,0.00028552,3]
[370321906,1751957446937,-300.0,0.00028556,10]
[370321908,1751957446947,-300.0,0.00028556,10]
[370321910,1751957446958,-719.85,0.00028556,3]
[370321912,1751957446968,-719.85,0.00028556,3]
[370321914,1751957446978,-300.0,0.00028565,10]
[370321916,1751957446987,-300.0,0.00028565,10]
[370321918,1751957446998,-346.66899918,0.00028566,10]
[370321920,1751957447007,-300.0,0.00028566,10]
[370321922,1751957447016,-306.57167144,0.00028566,10]
[370321924,1751957447025,-460.0,0.00028566,3]
[370321926,1751957447034,-531.32,0.00028566,3]
[370321928,1751957447044,-460.0,0.00028566,3]
[370321930,1751957447053,-460.0,0.00028566,3]
[370321932,1751957447063,-460.0,0.00028566,3]
[370321934,1751957447072,-460.0,0.00028566,3]
[370321936,1751957447082,-460.0,0.00028566,3]
[370321938,1751957447091,-587.20694547,0.00028566,3]
[370321940,1751957447101,-460.0,0.00028566,3]
[370321941,1751957447110,-460.0,0.00028566,3]
[370321942,1751957447119,-460.0,0.00028566,3]
[370321943,1751957447129,-582.11,0.00028566,3]
[370321944,1751957447138,-493.43048432,0.00028566,3]
[370321945,1751957447148,-460.0,0.00028566,3]
[370321946,1751957447157,-460.0,0.00028566,3]
[370321947,1751957447167,-500.0,0.00028566,3]
[370321948,1751957447176,-460.0,0.00028566,3]
[370321949,1751957447185,-460.0,0.00028566,3]
[370321950,1751957447195,-460.0,0.00028566,3]
[370321951,1751957447204,-517.5,0.00028566,3]
[370321952,1751957447213,-460.0,0.00028566,3]
[370321953,1751957447223,-460.0,0.00028566,3]
[370321954,1751957447232,-460.0,0.00028566,3]
[370321955,1751957447242,-460.0,0.00028566,3]
[370321956,1751957447251,-460.0,0.00028566,3]
[370321957,1751957447260,-2146.21,0.00028566,3]
[370321958,1751957447270,-460.0,0.00028566,3]
[370321959,1751957447279,-1670.26,0.00028566,3]
[370321960,1751957447288,-460.0,0.00028566,3]
[370321961,1751957447298,-465.58,0.00028566,3]
[370321962,1751957447307,-460.0,0.00028566,3]
[370321963,1751957447317,-460.0,0.00028566,3]
[370321964,1751957447326,-460.0,0.00028566,3]
[370321965,1751957447335,-460.0,0.00028566,3]
[370321966,1751957447345,-460.0,0.00028566,3]
[370321967,1751957447354,-460.0,0.00028566,3]
[370321968,1751957447364,-460.0,0.00028566,3]
[370321969,1751957447373,-460.0,0.00028566,3]
[370321970,1751957447383,-460.0,0.00028566,3]
[370321971,1751957447396,-579.12542918,0.00028566,3]
[370321972,1751957447406,-460.0,0.00028566,3]
[370321973,1751957447415,-460.0,0.00028566,3]
[370321974,1751957447425,-460.0,0.00028566,3]
[370321975,1751957447436,-997.03,0.00028566,3]
[370321976,1751957447446,-460.0,0.00028566,3]
[370321977,1751957447457,-460.0,0.00028566,3]
[370321978,1751957447469,-460.0,0.00028566,3]
[370321979,1751957447479,-460.0,0.00028566,3]
[370321980,1751957447489,-460.0,0.00028566,3]
[370321981,1751957447498,-569.01986941,0.00028566,3]
[370321982,1751957447508,-460.0,0.00028566,3]
[370321983,1751957447517,-460.0,0.00028566,3]
[370321984,1751957447529,-460.0,0.00028566,3]
[370321985,1751957447538,-460.0,0.00028566,3]
[370321986,1751957447548,-460.0,0.00028566,3]
[370321987,1751957447558,-460.0,0.00028566,3]
[370321988,1751957447567,-460.0,0.00028566,3]
[370321989,1751957447577,-868.35,0.00028566,3]
[370321990,1751957447586,-460.0,0.00028566,3]
[370321991,1751957447596,-1324.05,0.00028566,3]
[370321992,1751957447606,-455.13907237,0.00028566,3]
[370321993,1751957447616,-460.0,0.00028566,3]
[370321994,1751957447625,-460.0,0.00028566,3]
[370321995,1751957447635,-460.0,0.00028566,3]
[370321996,1751957447645,-1370.71,0.00028566,3]
[370321997,1751957447654,-460.0,0.00028566,3]
[370321998,1751957447664,-460.0,0.00028566,3]
[370321999,1751957447673,-768.99,0.00028566,3]
[370322000,1751957447683,-417.89867074,0.00028566,3]
[370322001,1751957447692,-460.0,0.00028566,3]
[370322002,1751957447701,-460.0,0.00028566,3]
[370322003,1751957447711,-564.69,0.00028566,3]
[370322004,1751957447721,-460.0,0.00028566,3]
[370322005,1751957447730,-460.0,0.00028566,3]
[370322006,1751957447741,-460.0,0.00028566,3]
[370322007,1751957447750,-460.0,0.00028566,3]
[370322008,1751957447760,-460.0,0.00028566,3]
[370322009,1751957447769,-1265.99,0.00028566,3]
[370322010,1751957447779,-460.0,0.00028566,3]
[370322011,1751957447788,-542.28,0.00028566,3]
[370322012,1751957447797,-925.55,0.00028566,3]
[370322013,1751957447806,-460.0,0.00028566,3]
[370322014,1751957447815,-460.0,0.00028566,3]
[370322015,1751957447825,-1139.92,0.00028566,3]
[370322016,1751957447835,-460.0,0.00028566,3]
[370322017,1751957447844,-620.19,0.00028566,3]
[370322018,1751957447853,-460.0,0.00028566,3]
[370322019,1751957447863,-460.0,0.00028566,3]
[370322020,1751957447872,-477.23,0.00028566,3]
[370322021,1751957447882,-460.0,0.00028566,3]
[370322022,1751957447891,-1083.07,0.00028566,3]
[370322023,1751957447901,-460.0,0.00028566,3]
[370322024,1751957447910,-491.28211943,0.00028566,3]
[370322025,1751957447920,-606.61,0.00028566,3]
[370322026,1751957447929,-460.0,0.00028566,3]
[370322027,1751957447939,-460.0,0.00028566,3]
[370322028,1751957447948,-460.0,0.00028566,3]
[370322029,1751957447957,-460.0,0.00028566,3]
[370322030,1751957447967,-460.0,0.00028566,3]
[370322031,1751957447976,-536.66,0.00028566,3]
[370322032,1751957447986,-460.0,0.00028566,3]
[370322033,1751957447995,-988.55,0.00028566,3]
[370322034,1751957448005,-460.0,0.00028566,3]
[370322035,1751957448014,-460.0,0.00028566,3]
[370322036,1751957448023,-847.46,0.00028566,3]
[370322037,1751957448032,-834.23,0.00028566,3]
[370322038,1751957448041,-460.0,0.00028566,3]
[370322039,1751957448050,-460.0,0.00028566,3]
[370322040,1751957448060,-460.0,0.00028566,3]
[370322041,1751957448069,-460.0,0.00028566,3]
[370322042,1751957448079,-460.0,0.00028566,3]
[370322043,1751957448088,-414.38322162,0.00028566,3]
[370322044,1751957448098,-617.71,0.00028566,3]
[370322045,1751957448107,-460.0,0.00028566,3]
[370322047,1751957448117,-667.19,0.00028566,3]
[370322048,1751957448127,-460.0,0.00028566,3]
[370322049,1751957448136,-1768.75,0.00028566,3]
[370322050,1751957448146,-496.8916765,0.00028566,3]
[370322051,1751957448156,-575.03,0.00028566,3]
[370322052,1751957448166,-460.0,0.00028566,3]
[370322053,1751957448177,-2071.73,0.00028566,3]
[370322054,1751957448188,-1419.55,0.00028566,3]
[370322055,1751957448207,-460.0,0.00028566,3]
[370322056,1751957448217,-460.0,0.00028566,3]
[370322057,1751957448227,-489.43,0.00028566,3]
[370322058,1751957448236,-460.0,0.00028566,3]
[370322059,1751957448246,-523.58,0.00028566,3]
[370322060,1751957448255,-460.0,0.00028566,3]
[370322061,1751957448265,-460.0,0.00028566,3]
[370322062,1751957448275,-495.1694907,0.00028566,3]
[370322063,1751957448284,-496.43265631,0.00028566,3]
[370322064,1751957448294,-688.74,0.00028566,3]
[370322065,1751957448303,-460.0,0.00028566,3]
[370322066,1751957448312,-460.0,0.00028566,3]
[370322067,1751957448322,-460.0,0.00028566,3]
[370322068,1751957448331,-460.0,0.00028566,3]
[370322069,1751957448341,-460.0,0.00028566,3]
[370322070,1751957448351,-460.0,0.00028566,3]
[370322071,1751957448360,-361.79598794,0.00028566,3]
[370322072,1751957448369,-642.63,0.00028566,3]
[370322073,1751957448380,-497.75223761,0.00028566,3]
[370322074,1751957448394,-1316.76,0.00028566,3]
[370322075,1751957448404,-490.84420847,0.00028566,3]
[370322076,1751957448414,-460.0,0.00028566,3]
[370322077,1751957448424,-722.56,0.00028566,3]
[370322078,1751957448434,-460.0,0.00028566,3]
[370322079,1751957448444,-500.0,0.00028566,3]
[370322080,1751957448454,-460.0,0.00028566,3]
[370322081,1751957448464,-460.0,0.00028566,3]
[370322082,1751957448474,-460.0,0.00028566,3]
[370322083,1751957448484,-460.0,0.00028566,3]
[370322084,1751957448494,-460.0,0.00028566,3]
[370322085,1751957448504,-460.0,0.00028566,3]
[370322086,1751957448513,-540.98,0.00028566,3]
[370322087,1751957448524,-460.0,0.00028566,3]
[370322088,1751957448533,-500.0,0.00028566,3]
[370322089,1751957448543,-460.0,0.00028566,3]
[370322090,1751957448553,-460.0,0.00028566,3]
[370322091,1751957448562,-460.0,0.00028566,3]
[370322092,1751957448770,-460.38703253,0.00028566,3]
[370322093,1751957448787,-719.85,0.00028566,3]
[370322094,1751957448796,-719.85,0.00028566,3]
[370322095,1751957448806,-719.85,0.00028566,3]
[370322096,1751957448815,-719.85,0.00028566,3]
[370322097,1751957448826,-719.85,0.00028566,3]
[370322098,1751957448835,-719.85,0.00028566,3]
[370322099,1751957448845,-719.85,0.00028566,3]
[370322100,1751957448855,-719.85,0.00028566,3]
[370322101,1751957448864,-719.85,0.00028566,3]
[370322102,1751957448874,-719.85,0.00028566,3]
[370322103,1751957448884,-719.85,0.00028566,3]
[370322104,1751957448894,-719.85,0.00028566,3]
[370322105,1751957448903,-460.0,0.00028566,3]
[370322106,1751957448913,-719.85,0.00028566,3]
[370322107,1751957448923,-719.85,0.00028566,3]
[370322108,1751957448932,-460.0,0.00028566,3]
[370322109,1751957448942,-460.0,0.00028566,3]
[370322110,1751957448952,-490.29238672,0.00028566,3]
[370322111,1751957448962,-460.0,0.00028566,3]
[370322112,1751957448972,-460.0,0.00028566,3]
[370322113,1751957448982,-493.37142748,0.00028566,3]
[370322114,1751957448991,-460.0,0.00028566,3]